[Event "Hungarian Youth-ch I 2024"]
[Site "Szolnok"]
[Date "2024.04.02"]
[Round "2.18"]
[White "Nagy, Norbert"]
[Black "Marton-John, Almos Kiran"]
[Result "1-0"]
[ECO "C79"]
[WhiteElo "1629"]
[BlackElo "1693"]
[Annotator "NA RC"]
[PlyCount "141"]
[EventDate "2024.03.31"]
[EventType "swiss"]
[EventCountry "HUN"]
[SourceTitle "playchess.com"]
[Source "ChessBase"]
[SourceQuality "1"]
[TimeControl "5400+30"]

1. e4 {[%emt 0:00:01]} e5 {[%emt 0:00:03]} 2. Nf3 {[%emt 0:00:15]} Nc6 {[%emt 0:00:04]} 3. Bb5 {[%emt 0:00:11]} a6 {[%emt 0:00:07]} 4. Ba4 {[%emt 0:00:08]} Nf6 {[%emt 0:00:09]} 5. O-O {[%emt 0:00:12]} d6 {[%emt 0:00:05]} 6. c3 {[%emt 0:00:45]} b5 {[%emt 0:00:59]} 7. Bc2 {[%emt 0:00:10]} Be7 {[%emt 0:00:06]} 8. h3 {[%emt 0:00:37]} h6 9. d4 Bb7 {[%emt 0:01:34]} 10. Be3 {[%emt 0:01:42]} O-O {[%emt 0:01:52]} 11. Nbd2 {[%emt 0:03:11]} Na5 {[%emt 0:01:01]} 12. dxe5 {[%emt 0:01:19]} dxe5 {[%emt 0:00:32]} 13. Nxe5 {[%emt 0:01:03]} Bd6 {[%emt 0:00:43]} 14. Ng4 {[%emt 0:01:36]} Re8 {[%emt 0:09:48]} 15. Nxf6+ {[%emt 0:08:26]} Qxf6 {[%emt 0:00:04]} 16. f4 {[%emt 0:14:04]} Qg6 {[%emt 0:01:08]} 17. Rf2 {[%emt 0:04:15]} c5 {[%emt 0:19:52]} 18. e5 {[%emt 0:00:45]} Qe6 {[%emt 0:01:35]} 19. Nf1 {[%emt 0:05:46]} Bf8 {[%emt 0:02:47]} 20. Qd3 {[%emt 0:01:35]} g6 {[%emt 0:08:33]} 21. f5 {[%emt 0:00:50]} Qxe5 {[%emt 0:21:55]} 22. fxg6 {[%emt 0:01:12]} fxg6 {[%emt 0:02:37]} 23. Qxg6+ {[%emt 0:00:36]} Qg7 {[%emt 0:00:15]} 24. Qxg7+ {[%emt 0:00:49]} Kxg7 {[%emt 0:00:05]} 25. Ng3 {[%emt 0:00:52]} Nc4 {[%emt 0:03:01]} 26. Nh5+ {[%emt 0:01:26]} Kh8 {[%emt 0:01:04]} 27. Rf7 {[%emt 0:03:20]} Re7 {[%emt 0:02:02]} 28. Rxe7 {[%emt 0:01:43]} Bxe7 {[%emt 0:00:06]} 29. Bxh6 {[%emt 0:00:31]} Bf8 {[%emt 0:08:04]} 30. Bxf8 {[%emt 0:01:13]} Rxf8 {[%emt 0:00:07]} 31. Re1 {[%emt 0:01:54]} Nxb2 {[%emt 0:01:08]} 32. Re7 {[%emt 0:00:35]} Bd5 {[%emt 0:00:50]} 33. g4 {[%emt 0:01:00]} Bf7 {[%emt 0:03:24]} 34. Nf4 {[%emt 0:01:56]} Kg7 {[%emt 0:03:02]} 35. g5 {[%emt 0:02:42]} Re8 {[%emt 0:01:16]} 36. Rxf7+ {[%emt 0:01:17]} Kxf7 {[%emt 0:00:09]} 37. Bg6+ {[%emt 0:00:16]} Kf8 {[%emt 0:00:11]} 38. Bxe8 {[%emt 0:00:12]} Kxe8 {[%emt 0:00:06]} 39. Ne6 {[%emt 0:00:23]} Nd3 {[%emt 0:05:25]} 40. Nc7+ {[%emt 0:00:31]} Kf7 {[%emt 0:00:06]} 41. Nxa6 {[%emt 0:00:27]} Kg6 {[%emt 0:00:12]} 42. h4 {[%emt 0:00:16]} Ne5 {[%emt 0:00:27]} 43. Kf2 {[%emt 0:00:37]} Kh5 {[%emt 0:00:36]} 44. Kg3 {[%emt 0:00:23]} Ng6 {[%emt 0:00:23]} 45. Nxc5 {[%emt 0:00:20]} Nxh4 {[%emt 0:00:10]} 46. Ne4 {[%emt 0:00:20]} Nf5+ {[%emt 0:01:03]} 47. Kf4 {[%emt 0:00:36]} Kg6 {[%emt 0:00:31]} 48. Ke5 {[%emt 0:00:30]} Ne3 {[%emt 0:00:43]} 49. Kd4 {[%emt 0:00:40]} Nc2+ {[%emt 0:01:13]} 50. Kc5 {[%emt 0:00:22]} Na3 {[%emt 0:00:22]} 51. Kb4 {[%emt 0:00:10]} Nb1 {[%emt 0:00:54]} 52. Kxb5 {[%emt 0:00:12]} Kf5 {[%emt 0:00:07]} 53. Kb4 {[%emt 0:01:03]} Kxe4 {[%emt 0:02:20]} 54. g6 {[%emt 0:00:15]} Nd2 {[%emt 0:01:06]} 55. g7 {[%emt 0:00:07]} Nf3 {[%emt 0:01:01]} 56. g8=Q {[%emt 0:00:17]} Ne5 {[%emt 0:00:24]} 57. Qe6 {[%emt 0:00:09]} Kf4 {[%emt 0:00:23]} 58. Qxe5+ {[%emt 0:00:14]} Kxe5 {[%emt 0:00:48]} 59. Kc5 {[%emt 0:00:09]} Ke6 {[%emt 0:00:51]} 60. a4 {[%emt 0:00:12]} Kd7 {[%emt 0:00:51]} 61. a5 {[%emt 0:00:13]} Kc7 {[%emt 0:00:06]} 62. a6 {[%emt 0:00:09]} Kb8 {[%emt 0:00:07]} 63. Kb6 {[%emt 0:00:10]} Ka8 {[%emt 0:00:18]} 64. c4 {[%emt 0:00:12]} Kb8 {[%emt 0:00:11]} 65. c5 {[%emt 0:00:11]} Kc8 {[%emt 0:00:11]} 66. a7 {[%emt 0:00:06]} Kd7 {[%emt 0:00:06]} 67. a8=Q {[%emt 0:00:11]} Ke6 {[%emt 0:00:10]} 68. Qe8+ {[%emt 0:00:22]} Kd5 {[%emt 0:00:04]} 69. c6 {[%emt 0:00:19]} Kd4 {[%emt 0:00:14]} 70. c7 {[%emt 0:00:13]} Kd5 {[%emt 0:00:07]} 71. c8=Q {[%emt 0:00:12]} 1-0

[Event "Hungarian Youth-ch I 2024"]
[Site "Szolnok"]
[Date "2024.04.02"]
[Round "2.19"]
[White "Fan, Xiaotong"]
[Black "Tari, Arpad"]
[Result "1-0"]
[ECO "C29"]
[WhiteElo "1731"]
[BlackElo "1491"]
[Annotator "NA RC"]
[PlyCount "65"]
[EventDate "2024.03.31"]
[EventType "swiss"]
[EventCountry "HUN"]
[SourceTitle "playchess.com"]
[Source "ChessBase"]
[SourceQuality "1"]
[TimeControl "5400+30"]

1. e4 {[%emt 0:00:25]} e5 {[%emt 0:00:57]} 2. Nc3 {[%emt 0:00:14]} Nf6 {[%emt 0:01:17]} 3. f4 {[%emt 0:00:29]} d5 {[%emt 0:00:22]} 4. fxe5 {[%emt 0:00:10]} Nxe4 {[%emt 0:00:23]} 5. Nf3 {[%emt 0:00:16]} Bg4 {[%emt 0:00:51]} 6. d4 {[%emt 0:03:36]} Nc6 {[%emt 0:01:48]} 7. Bb5 {[%emt 0:05:07]} Bb4 {[%emt 0:01:16]} 8. Bd2 {[%emt 0:19:37]} Bxf3 9. Qxf3 {[%emt 0:03:33]} Nxd2 {[%emt 0:04:49]} 10. Kxd2 {[%emt 0:00:14]} O-O {[%emt 0:00:16]} 11. Bxc6 {[%emt 0:01:22]} bxc6 {[%emt 0:00:34]} 12. Ke2 {[%emt 0:00:17]} f6 {[%emt 0:01:00]} 13. exf6 {[%emt 0:04:37]} Rxf6 {[%emt 0:01:54]} 14. Qe3 {[%emt 0:00:30]} Qd7 {[%emt 0:01:36]} 15. Kd2 {[%emt 0:00:39]} Re8 {[%emt 0:01:10]} 16. Qg3 {[%emt 0:02:41]} Qe7 {[%emt 0:02:03]} 17. Rae1 {[%emt 0:01:17]} Re6 {[%emt 0:01:26]} 18. Rxe6 {[%emt 0:03:55]} Qxe6 {[%emt 0:00:58]} 19. Re1 {[%emt 0:00:32]} Bxc3+ {[%emt 0:01:17]} 20. bxc3 {[%emt 0:00:12]} Qh6+ {[%emt 0:01:08]} 21. Kd1 {[%emt 0:00:41]} Qh5+ {[%emt 0:01:08]} 22. Kc1 {[%emt 0:00:49]} Rxe1+ {[%emt 0:02:39]} 23. Qxe1 {[%emt 0:05:20]} Qf7 {[%emt 0:00:51]} 24. Qe2 {[%emt 0:01:05]} Qf4+ {[%emt 0:05:06]} 25. Kb2 {[%emt 0:00:26]} Qf7 {[%emt 0:01:36]} 26. Qa6 {[%emt 0:02:23]} Qf6 {[%emt 0:02:48]} 27. Qc8+ {[%emt 0:01:11]} Qf8 {[%emt 0:00:31]} 28. Qxc7 {[%emt 0:00:33]} Qf1 {[%emt 0:02:21]} 29. Qxc6 {[%emt 0:01:49]} Qf7 {[%emt 0:01:05]} 30. Qc8+ {[%emt 0:00:12]} Qf8 {[%emt 0:00:13]} 31. Qxf8+ {[%emt 0:00:08]} Kxf8 {[%emt 0:00:16]} 32. c4 {[%emt 0:00:06]} dxc4 {[%emt 0:00:16]} 33. Kc3 {[%emt 0:00:05]} 1-0

[Event "Hungarian Youth-ch I 2024"]
[Site "Szolnok"]
[Date "2024.04.02"]
[Round "2.21"]
[White "Sipos, Stefania"]
[Black "Buri, Petra Zsuzsanna"]
[Result "1/2-1/2"]
[ECO "C77"]
[WhiteElo "1885"]
[BlackElo "1972"]
[Annotator "RC"]
[PlyCount "102"]
[EventDate "2024.03.31"]
[EventType "swiss"]
[EventCountry "HUN"]
[SourceTitle "playchess.com"]
[Source "ChessBase"]
[SourceQuality "1"]
[TimeControl "5400+30"]

1. e4 {[%emt 0:00:02]} e5 {[%emt 0:00:26]} 2. Nf3 {[%emt 0:00:06]} Nc6 {[%emt 0:00:05]} 3. Bb5 {[%emt 0:00:10]} a6 {[%emt 0:00:21]} 4. Ba4 {[%emt 0:00:09]} Nf6 {[%emt 0:00:32]} 5. d3 {[%emt 0:02:21]} b5 {[%emt 0:01:47]} 6. Bb3 {[%emt 0:00:06]} Be7 {[%emt 0:00:06]} 7. O-O {[%emt 0:00:31]} O-O {[%emt 0:00:22]} 8. Nc3 {[%emt 0:00:39]} d6 {[%emt 0:00:50]} 9. a3 {[%emt 0:00:59]} Na5 {[%emt 0:00:56]} 10. Ba2 {[%emt 0:00:43]} Be6 {[%emt 0:00:24]} 11. Nd5 {[%emt 0:02:15]} Nxd5 {[%emt 0:01:26]} 12. Bxd5 {[%emt 0:07:54]} Bxd5 {[%emt 0:02:36]} 13. exd5 {[%emt 0:00:06]} c5 {[%emt 0:00:12]} 14. b4 {[%emt 0:07:57]} Nb7 {[%emt 0:01:45]} 15. Bb2 {[%emt 0:07:24]} a5 {[%emt 0:07:06]} 16. Qd2 {[%emt 0:02:57]} Qc7 {[%emt 0:02:16]} 17. Rfc1 {[%emt 0:06:12]} h6 {[%emt 0:14:58]} 18. Qe1 {[%emt 0:33:23]} f5 {[%emt 0:02:26]} 19. bxa5 {[%emt 0:04:30]} Nxa5 {[%emt 0:05:37]} 20. Bc3 {[%emt 0:08:42]} Rfb8 {[%emt 0:07:09]} 21. Rcb1 {[%emt 0:00:49]} Bd8 {[%emt 0:06:34]} 22. Nxe5 {[%emt 0:02:29]} b4 {[%emt 0:20:59]} 23. axb4 {[%emt 0:00:42]} cxb4 {[%emt 0:00:08]} 24. Bd4 {[%emt 0:01:08]} dxe5 {[%emt 0:06:58]} 25. Bxe5 {[%emt 0:00:06]} Qxc2 {[%emt 0:00:24]} 26. Bxb8 {[%emt 0:01:20]} Rxb8 {[%emt 0:00:02]} 27. Rxb4 {[%emt 0:03:20]} Rxb4 {[%emt 0:00:28]} 28. Qxb4 {[%emt 0:00:05]} Nb3 {[%emt 0:00:59]} 29. Rf1 {[%emt 0:03:45]} Qxd3 {[%emt 0:02:47]} 30. d6 {[%emt 0:00:21]} Nd2 {[%emt 0:03:25]} 31. Re1 {[%emt 0:00:54]} Ne4 {[%emt 0:00:06]} 32. Qb8 {[%emt 0:02:54]} Qxd6 {[%emt 0:00:18]} 33. Qxd6 {[%emt 0:00:31]} Nxd6 {[%emt 0:00:05]} 34. Rd1 {[%emt 0:00:56]} Be7 {[%emt 0:00:16]} 35. g3 {[%emt 0:00:36]} Kf7 {[%emt 0:00:18]} 36. Kg2 {[%emt 0:00:10]} Kf6 {[%emt 0:00:26]} 37. Rd5 {[%emt 0:00:55]} g5 {[%emt 0:01:42]} 38. Ra5 {[%emt 0:00:20]} Kg6 {[%emt 0:07:27]} 39. Ra7 {[%emt 0:00:41]} Kf6 {[%emt 0:00:27]} 40. Ra5 {[%emt 0:00:09]} g4 {[%emt 0:00:33]} 41. h3 {[%emt 0:00:35]} gxh3+ {[%emt 0:00:39]} 42. Kxh3 {[%emt 0:00:06]} Ne4 {[%emt 0:00:22]} 43. Kg2 {[%emt 0:00:42]} Bd6 {[%emt 0:01:00]} 44. Ra6 {[%emt 0:00:40]} Ke7 {[%emt 0:00:53]} 45. Ra7+ {[%emt 0:00:45]} Kf6 {[%emt 0:01:24]} 46. Ra6 {[%emt 0:00:37]} Ke5 {[%emt 0:01:38]} 47. Ra5+ {[%emt 0:00:35]} Nc5 {[%emt 0:00:26]} 48. Kf3 {[%emt 0:00:23]} h5 {[%emt 0:00:29]} 49. Ra8 {[%emt 0:00:23]} Kf6 {[%emt 0:00:50]} 50. Rh8 {[%emt 0:00:33]} Kg6 {[%emt 0:00:37]} 51. Rd8 {[%emt 0:00:36]} Bc7 {[%emt 0:01:16]} 1/2-1/2

[Event "Hungarian Youth-ch I 2024"]
[Site "Szolnok"]
[Date "2024.04.02"]
[Round "2.22"]
[White "Alexandrova, Angelina"]
[Black "Harkai, Emma"]
[Result "1/2-1/2"]
[ECO "D02"]
[WhiteElo "1812"]
[BlackElo "1918"]
[Annotator "RC"]
[PlyCount "61"]
[EventDate "2024.03.31"]
[EventType "swiss"]
[EventCountry "HUN"]
[SourceTitle "playchess.com"]
[Source "ChessBase"]
[SourceQuality "1"]
[TimeControl "5400+30"]

1. d4 {[%emt 0:00:02]} d5 {[%emt 0:00:13]} 2. Nf3 {[%emt 0:00:11]} Nf6 {[%emt 0:00:36]} 3. g3 {[%emt 0:00:09]} e6 {[%emt 0:00:49]} 4. Bg2 {[%emt 0:00:19]} Be7 {[%emt 0:01:42]} 5. O-O {[%emt 0:00:12]} b5 {[%emt 0:02:42]} 6. a4 {[%emt 0:09:19]} b4 {[%emt 0:02:34]} 7. Ne5 {[%emt 0:05:15]} Bb7 {[%emt 0:05:21]} 8. c3 {[%emt 0:02:23]} bxc3 {[%emt 0:05:22]} 9. bxc3 {[%emt 0:02:55]} O-O {[%emt 0:05:45]} 10. Nd2 {[%emt 0:11:19]} Nbd7 {[%emt 0:04:56]} 11. Ndf3 {[%emt 0:06:21]} Rb8 {[%emt 0:07:16]} 12. a5 {[%emt 0:08:55]} a6 {[%emt 0:05:38]} 13. Qa4 {[%emt 0:01:34]} Nxe5 {[%emt 0:02:41]} 14. Nxe5 {[%emt 0:00:17]} Qe8 {[%emt 0:01:45]} 15. Bg5 {[%emt 0:05:33]} Qxa4 {[%emt 0:04:23]} 16. Rxa4 {[%emt 0:00:04]} Rfd8 {[%emt 0:01:38]} 17. Rb1 {[%emt 0:03:33]} h6 {[%emt 0:07:21]} 18. Bf4 {[%emt 0:13:59]} g5 {[%emt 0:06:47]} 19. Bd2 {[%emt 0:06:03]} Bc6 {[%emt 0:06:49]} 20. Rxb8 {[%emt 0:14:21]} Bxa4 {[%emt 0:00:24]} 21. Rxd8+ {[%emt 0:00:05]} Bxd8 {[%emt 0:00:08]} 22. c4 {[%emt 0:00:22]} Be7 {[%emt 0:04:08]} 23. c5 {[%emt 0:01:38]} Nd7 {[%emt 0:02:54]} 24. Nxd7 {[%emt 0:01:58]} Bxd7 {[%emt 0:00:08]} 25. e4 {[%emt 0:00:07]} dxe4 {[%emt 0:07:28]} 26. Bxe4 {[%emt 0:00:05]} Bb5 {[%emt 0:00:47]} 27. f4 {[%emt 0:01:12]} Bf6 {[%emt 0:02:28]} 28. Bc3 {[%emt 0:00:41]} gxf4 {[%emt 0:01:37]} 29. gxf4 {[%emt 0:00:05]} Kf8 {[%emt 0:02:14]} 30. Kf2 {[%emt 0:00:15]} Ke7 {[%emt 0:00:34]} 31. Ke3 {[%emt 0:00:31]} 1/2-1/2

[Event "Hungarian Youth-ch I 2024"]
[Site "Szolnok"]
[Date "2024.04.02"]
[Round "2.23"]
[White "Kiraly, Lilla Virag"]
[Black "Kovacs, Veronika"]
[Result "1-0"]
[ECO "B11"]
[WhiteElo "1923"]
[BlackElo "1931"]
[Annotator "RC"]
[PlyCount "119"]
[EventDate "2024.03.31"]
[EventType "swiss"]
[EventCountry "HUN"]
[SourceTitle "playchess.com"]
[Source "ChessBase"]
[SourceQuality "1"]
[TimeControl "5400+30"]

1. e4 {[%emt 0:00:07]} c6 {[%emt 0:00:04]} 2. Nc3 {[%emt 0:00:35]} d5 {[%emt 0:00:05]} 3. Nf3 {[%emt 0:00:14]} Bg4 {[%emt 0:00:07]} 4. h3 {[%emt 0:00:24]} Bxf3 {[%emt 0:00:05]} 5. Qxf3 {[%emt 0:00:15]} e6 {[%emt 0:00:05]} 6. d4 {[%emt 0:01:59]} Nf6 {[%emt 0:10:02]} 7. exd5 {[%emt 0:05:14]} Nxd5 {[%emt 0:03:00]} 8. Bd2 {[%emt 0:18:20]} Nd7 {[%emt 0:06:34]} 9. Nxd5 {[%emt 0:04:30]} exd5 {[%emt 0:06:28]} 10. Bd3 {[%emt 0:03:15]} Qf6 {[%emt 0:22:48]} 11. Qe2+ {[%emt 0:04:11]} Be7 {[%emt 0:15:23]} 12. c3 {[%emt 0:08:46]} O-O {[%emt 0:02:12]} 13. O-O {[%emt 0:04:22]} Rfe8 {[%emt 0:02:03]} 14. Qg4 {[%emt 0:03:44]} Nf8 {[%emt 0:00:52]} 15. Rae1 {[%emt 0:05:52]} Qh4 {[%emt 0:05:05]} 16. a4 {[%emt 0:10:26]} Qxg4 {[%emt 0:07:22]} 17. hxg4 {[%emt 0:00:15]} h6 {[%emt 0:01:40]} 18. b4 {[%emt 0:02:13]} a6 {[%emt 0:00:47]} 19. b5 {[%emt 0:09:09]} axb5 {[%emt 0:03:22]} 20. axb5 {[%emt 0:00:08]} Ne6 {[%emt 0:00:48]} 21. Bf5 {[%emt 0:01:55]} Bd6 {[%emt 0:01:12]} 22. Rb1 {[%emt 0:00:56]} Reb8 {[%emt 0:07:58]} 23. Rfe1 {[%emt 0:02:28]} Nc7 {[%emt 0:00:48]} 24. b6 {[%emt 0:05:23]} Nb5 {[%emt 0:00:33]} 25. Ra1 {[%emt 0:01:53]} Ra6 {[%emt 0:01:07]} 26. Bd3 {[%emt 0:04:40]} Rxb6 {[%emt 0:01:27]} 27. Rab1 {[%emt 0:00:26]} Kf8 {[%emt 0:00:45]} 28. Rb3 {[%emt 0:00:55]} Ra6 {[%emt 0:00:49]} 29. Bxb5 {[%emt 0:00:15]} cxb5 {[%emt 0:00:05]} 30. Rxb5 {[%emt 0:00:14]} Ra2 {[%emt 0:00:52]} 31. Be3 {[%emt 0:00:32]} Rc2 {[%emt 0:00:45]} 32. Rxd5 {[%emt 0:00:16]} Bc7 {[%emt 0:00:33]} 33. Rc5 {[%emt 0:02:07]} Bd6 {[%emt 0:00:29]} 34. Rc4 {[%emt 0:00:17]} Ra8 {[%emt 0:00:24]} 35. g3 {[%emt 0:00:33]} f6 {[%emt 0:00:43]} 36. Rb1 {[%emt 0:00:42]} Rb8 {[%emt 0:00:28]} 37. d5 {[%emt 0:00:14]} Ra2 {[%emt 0:00:23]} 38. Bc5 {[%emt 0:01:07]} Ke7 {[%emt 0:00:18]} 39. Bb6 {[%emt 0:00:34]} Kd7 {[%emt 0:00:25]} 40. Re4 {[%emt 0:00:14]} Rc2 {[%emt 0:00:34]} 41. Ba7 {[%emt 0:00:35]} Rc8 {[%emt 0:00:52]} 42. Rxb7+ {[%emt 0:00:13]} Rc7 {[%emt 0:00:15]} 43. Rxc7+ {[%emt 0:00:27]} Bxc7 {[%emt 0:00:29]} 44. Bd4 {[%emt 0:00:32]} Kd6 {[%emt 0:00:44]} 45. c4 {[%emt 0:00:45]} Rxc4 {[%emt 0:00:29]} 46. Be5+ {[%emt 0:00:25]} Kxd5 {[%emt 0:00:06]} 47. Rxc4 {[%emt 0:00:19]} Bxe5 {[%emt 0:00:05]} 48. Ra4 {[%emt 0:00:14]} Ke6 {[%emt 0:00:41]} 49. Ra7 {[%emt 0:00:14]} f5 {[%emt 0:00:59]} 50. Ra6+ {[%emt 0:00:08]} Kf7 {[%emt 0:00:48]} 51. gxf5 {[%emt 0:00:07]} Bd4 {[%emt 0:00:18]} 52. Kg2 {[%emt 0:00:10]} Bc5 {[%emt 0:00:29]} 53. f4 {[%emt 0:00:50]} Bd4 {[%emt 0:00:23]} 54. Kf3 {[%emt 0:00:05]} Bf6 {[%emt 0:00:40]} 55. g4 {[%emt 0:00:19]} g5 {[%emt 0:00:31]} 56. fxg6+ {[%emt 0:01:25]} Kxg6 {[%emt 0:00:09]} 57. Ke4 {[%emt 0:00:10]} Kg7 {[%emt 0:00:51]} 58. Kf5 {[%emt 0:00:06]} Bd8 {[%emt 0:00:25]} 59. Ra7+ {[%emt 0:00:13]} Kf8 {[%emt 0:00:25]} 60. Kg6 {[%emt 0:00:28]} 1-0

[Event "Hungarian Youth-ch I 2024"]
[Site "Szolnok"]
[Date "2024.04.02"]
[Round "2.24"]
[White "Kovacs, Reka"]
[Black "Szarvas, Nora"]
[Result "1/2-1/2"]
[ECO "B29"]
[WhiteElo "1855"]
[BlackElo "1955"]
[Annotator "RC"]
[PlyCount "71"]
[EventDate "2024.03.31"]
[EventType "swiss"]
[EventCountry "HUN"]
[SourceTitle "playchess.com"]
[Source "ChessBase"]
[SourceQuality "1"]
[TimeControl "5400+30"]

1. e4 {[%emt 0:00:03]} c5 {[%emt 0:00:16]} 2. Nf3 {[%emt 0:00:05]} Nf6 {[%emt 0:00:07]} 3. e5 {[%emt 0:03:23]} Nd5 {[%emt 0:00:07]} 4. c4 {[%emt 0:02:35]} Nb6 {[%emt 0:01:57]} 5. d4 {[%emt 0:10:43]} cxd4 {[%emt 0:02:33]} 6. c5 {[%emt 0:02:26]} Nd5 {[%emt 0:00:43]} 7. Qxd4 {[%emt 0:03:46]} e6 {[%emt 0:01:16]} 8. Nc3 {[%emt 0:08:31]} Qa5 {[%emt 0:05:32]} 9. Bd2 {[%emt 0:04:48]} Nc6 {[%emt 0:22:23]} 10. Nxd5 {[%emt 0:06:10]} Nxd4 {[%emt 0:00:16]} 11. Bxa5 {[%emt 0:00:49]} Nxf3+ {[%emt 0:00:12]} 12. gxf3 {[%emt 0:00:51]} exd5 {[%emt 0:00:10]} 13. Rc1 {[%emt 0:13:39]} Be7 {[%emt 0:06:08]} 14. Bg2 {[%emt 0:03:03]} Bg5 {[%emt 0:01:43]} 15. Rd1 {[%emt 0:00:55]} b6 {[%emt 0:01:14]} 16. Bd2 {[%emt 0:07:23]} Bxd2+ {[%emt 0:05:22]} 17. Rxd2 {[%emt 0:00:07]} Bb7 {[%emt 0:00:12]} 18. cxb6 {[%emt 0:01:20]} axb6 {[%emt 0:01:14]} 19. a3 {[%emt 0:00:13]} Ra4 {[%emt 0:02:02]} 20. O-O {[%emt 0:00:59]} O-O {[%emt 0:00:41]} 21. f4 {[%emt 0:10:10]} Rxf4 {[%emt 0:02:49]} 22. Bxd5 {[%emt 0:00:41]} Ba6 {[%emt 0:02:55]} 23. Rc1 {[%emt 0:03:36]} Rf5 {[%emt 0:05:21]} 24. Rc7 {[%emt 0:05:11]} Rxe5 {[%emt 0:10:34]} 25. Rxd7 {[%emt 0:01:21]} Bc8 {[%emt 0:00:52]} 26. f4 {[%emt 0:03:20]} Rf5 {[%emt 0:02:14]} 27. Rc7 {[%emt 0:01:57]} Rxf4 {[%emt 0:01:09]} 28. Rf2 {[%emt 0:00:20]} Rxf2 {[%emt 0:04:42]} 29. Kxf2 {[%emt 0:00:04]} g6 {[%emt 0:01:46]} 30. b4 {[%emt 0:03:49]} Kg7 {[%emt 0:02:36]} 31. a4 {[%emt 0:00:32]} Kf6 {[%emt 0:00:16]} 32. a5 {[%emt 0:01:20]} Ke5 {[%emt 0:02:50]} 33. Rxf7 {[%emt 0:00:34]} Rxf7+ {[%emt 0:00:19]} 34. Bxf7 {[%emt 0:00:01]} bxa5 {[%emt 0:00:12]} 35. bxa5 {[%emt 0:00:03]} Ba6 {[%emt 0:00:19]} 36. Ke3 {[%emt 0:00:22]} 1/2-1/2

[Event "Hungarian Youth-ch I 2024"]
[Site "Szolnok"]
[Date "2024.04.02"]
[Round "2.25"]
[White "Nandin-Erdene, Davaademberel"]
[Black "Bende, Eniko Tunde"]
[Result "1-0"]
[ECO "B36"]
[WhiteElo "1978"]
[BlackElo "1650"]
[Annotator "RC"]
[PlyCount "111"]
[EventDate "2024.03.31"]
[EventType "swiss"]
[EventCountry "HUN"]
[SourceTitle "playchess.com"]
[Source "ChessBase"]
[SourceQuality "1"]
[TimeControl "5400+30"]

1. e4 {[%emt 0:00:03]} c5 {[%emt 0:00:06]} 2. Nf3 {[%emt 0:00:06]} Nc6 {[%emt 0:00:08]} 3. d4 {[%emt 0:00:08]} cxd4 {[%emt 0:00:17]} 4. Nxd4 {[%emt 0:00:05]} g6 {[%emt 0:00:12]} 5. c4 {[%emt 0:00:07]} Nf6 {[%emt 0:00:17]} 6. Nc3 {[%emt 0:00:11]} Nxd4 {[%emt 0:00:56]} 7. Qxd4 {[%emt 0:00:23]} Bg7 {[%emt 0:00:32]} 8. Be2 {[%emt 0:00:39]} d6 {[%emt 0:00:17]} 9. O-O {[%emt 0:00:54]} O-O {[%emt 0:00:10]} 10. Qd3 {[%emt 0:00:14]} Be6 {[%emt 0:00:42]} 11. Bd2 {[%emt 0:00:53]} Qd7 {[%emt 0:00:38]} 12. b3 {[%emt 0:01:40]} Rfc8 {[%emt 0:02:29]} 13. Rac1 {[%emt 0:02:44]} Bg4 {[%emt 0:01:55]} 14. f3 {[%emt 0:01:29]} Be6 {[%emt 0:00:22]} 15. f4 {[%emt 0:03:25]} Bg4 {[%emt 0:04:00]} 16. f5 {[%emt 0:03:01]} Bxe2 {[%emt 0:00:50]} 17. Nxe2 {[%emt 0:02:01]} Qc6 {[%emt 0:01:27]} 18. Nc3 {[%emt 0:03:51]} Ng4 {[%emt 0:05:15]} 19. Qe2 {[%emt 0:05:29]} Ne5 {[%emt 0:07:29]} 20. Nd5 {[%emt 0:01:46]} Re8 {[%emt 0:00:53]} 21. Kh1 {[%emt 0:09:54]} Rac8 {[%emt 0:02:15]} 22. Rc3 {[%emt 0:15:52]} Qd7 {[%emt 0:03:33]} 23. Rh3 {[%emt 0:08:37]} e6 {[%emt 0:08:23]} 24. Ne3 {[%emt 0:04:04]} a6 {[%emt 0:06:12]} 25. f6 {[%emt 0:00:30]} Bh8 {[%emt 0:00:47]} 26. Rf4 {[%emt 0:08:38]} Qd8 {[%emt 0:06:12]} 27. Qf2 {[%emt 0:03:01]} g5 {[%emt 0:05:39]} 28. Rg3 {[%emt 0:03:18]} h6 {[%emt 0:02:35]} 29. Qf1 {[%emt 0:09:07]} Kf8 {[%emt 0:02:45]} 30. Rf2 {[%emt 0:00:33]} Nd7 {[%emt 0:08:18]} 31. Bc3 {[%emt 0:00:21]} e5 {[%emt 0:00:53]} 32. Nd5 {[%emt 0:01:17]} Nc5 {[%emt 0:01:28]} 33. Qe2 {[%emt 0:04:07]} Re6 {[%emt 0:05:04]} 34. Qh5 {[%emt 0:01:37]} Nxe4 {[%emt 0:05:57]} 35. Qxh6+ {[%emt 0:00:10]} Ke8 {[%emt 0:00:53]} 36. Qxh8+ {[%emt 0:00:06]} Kd7 {[%emt 0:00:14]} 37. Qxd8+ {[%emt 0:00:04]} Rxd8 {[%emt 0:00:25]} 38. Rff3 {[%emt 0:00:19]} Nxg3+ {[%emt 0:00:09]} 39. Rxg3 {[%emt 0:00:02]} Rg8 {[%emt 0:00:52]} 40. Nb6+ {[%emt 0:00:44]} Kc6 {[%emt 0:00:38]} 41. Nd5 {[%emt 0:00:09]} Kd7 {[%emt 0:00:28]} 42. Rd3 {[%emt 0:00:48]} e4 {[%emt 0:00:52]} 43. Re3 {[%emt 0:00:10]} b5 {[%emt 0:01:14]} 44. Kg1 {[%emt 0:02:16]} Rb8 {[%emt 0:04:16]} 45. Kf2 {[%emt 0:00:43]} bxc4 {[%emt 0:01:08]} 46. bxc4 {[%emt 0:00:02]} Rh8 {[%emt 0:02:06]} 47. h3 {[%emt 0:00:09]} Rb8 {[%emt 0:01:38]} 48. Bd4 {[%emt 0:00:10]} Ree8 {[%emt 0:03:01]} 49. Ra3 {[%emt 0:00:11]} Rh8 {[%emt 0:03:47]} 50. Rxa6 {[%emt 0:00:05]} Ke6 {[%emt 0:01:42]} 51. Ra7 {[%emt 0:00:25]} Kf5 {[%emt 0:02:49]} 52. Rxf7 {[%emt 0:00:46]} Kg6 {[%emt 0:00:24]} 53. Rg7+ {[%emt 0:00:14]} Kh6 {[%emt 0:00:26]} 54. Ne3 {[%emt 0:01:16]} Ra8 {[%emt 0:00:22]} 55. Nf5+ {[%emt 0:00:08]} Kh5 {[%emt 0:00:37]} 56. g4# {[%emt 0:00:04]} 1-0